bitfinex/quotes_BTCUSD_20250831
["timestamp","ask_amount","ask_price","bid_price","bid_amount"]
[1756675615117,2.31478447,109250.0,109240.0,0.00047428]
[1756675615319,2.31478443,109250.0,109240.0,0.00047428]
[1756675618104,2.31478458,109250.0,109240.0,0.00047428]
[1756675622172,2.29498254,109250.0,109240.0,0.00047428]
[1756675622372,2.31479428,109250.0,109240.0,0.00047428]
[1756675623972,2.29974664,109250.0,109240.0,0.00047428]
[1756675624173,2.31479464,109250.0,109240.0,0.00047428]
[1756675624545,2.31479466,109250.0,109240.0,0.00047428]
[1756675624761,2.31479468,109250.0,109240.0,0.00047428]
[1756675626717,2.24435468,109250.0,109240.0,0.00047428]
[1756675629236,1.24737841,109250.0,109240.0,0.00259428]
[1756675629443,1.6377955,109250.0,109240.0,0.00576428]
[1756675629813,1.66255826,109250.0,109240.0,0.00576428]
[1756675631170,1.66254916,109250.0,109240.0,0.00576428]
[1756675632891,1.47712909,109250.0,109240.0,0.00576428]
[1756675633095,1.2346669,109250.0,109240.0,0.00576428]
[1756675633300,1.61519759,109250.0,109240.0,0.00576428]
[1756675634653,1.60015205,109250.0,109240.0,0.00576428]
[1756675634860,1.61517723,109250.0,109240.0,0.00576428]
[1756675635324,1.61517571,109250.0,109240.0,0.00576428]
[1756675635536,1.46277571,109250.0,109240.0,0.00576428]
[1756675635747,1.56288695,109250.0,109240.0,0.00576428]
[1756675635956,1.56288695,109250.0,109240.0,0.03329228]
[1756675636240,1.41048695,109250.0,109240.0,0.03329228]
[1756675636395,1.56288695,109250.0,109240.0,0.03329228]
[1756675638592,1.18235626,109250.0,109240.0,0.03329228]
[1756675638796,1.56288695,109250.0,109240.0,0.03329228]
[1756675641984,1.18232972,109250.0,109240.0,0.03329228]
[1756675642198,1.56286041,109250.0,109240.0,0.03329228]
[1756675643529,1.18232972,109250.0,109240.0,0.03329228]
[1756675643692,1.56286041,109250.0,109240.0,0.03329228]
[1756675644297,1.18232972,109250.0,109240.0,0.03329228]
[1756675644498,1.56286041,109250.0,109240.0,0.03329228]
[1756675645391,1.55642276,109250.0,109240.0,0.03329228]
[1756675645748,1.56285581,109250.0,109240.0,0.03329228]
[1756675655163,1.18232512,109250.0,109240.0,0.03329228]
[1756675655482,1.56285581,109250.0,109240.0,0.03329228]
[1756675656255,1.56285581,109250.0,109240.0,0.00576428]
[1756675656517,1.56286455,109250.0,109240.0,0.00576428]
[1756675656690,1.56287219,109250.0,109240.0,0.00576428]
[1756675657212,1.56485219,109250.0,109240.0,0.00576428]
[1756675660037,1.22285219,109250.0,109240.0,0.00576428]
[1756675664118,0.8403415,109250.0,109240.0,0.19113592]
[1756675664302,1.22087219,109250.0,109240.0,0.18884739]
[1756675664450,1.22087219,109250.0,109240.0,0.21637439]
[1756675665308,0.8402615,109250.0,109240.0,0.21637439]
[1756675666075,1.56079219,109250.0,109240.0,0.21637439]
[1756675667544,1.56081634,109250.0,109240.0,0.21637439]
[1756675668042,1.11721633,109250.0,109240.0,0.21637439]
[1756675670419,0.73668564,109250.0,109240.0,0.21637439]
[1756675670624,1.11721633,109250.0,109240.0,0.21637439]
[1756675674506,1.1172136,109250.0,109240.0,0.21637439]
[1756675677606,1.10862322,109250.0,109240.0,0.21637439]
[1756675677787,1.11721327,109250.0,109240.0,0.21637439]
[1756675678141,1.11720478,109250.0,109240.0,0.21637439]
[1756675679233,0.9556214,109250.0,109240.0,0.21637439]
[1756675679561,0.9556214,109250.0,109240.0,0.4616344]
[1756675679562,0.03221261,109250.0,109240.0,0.4616344]
[1756675679755,0.40630077,109250.0,109240.0,0.4616344]
[1756675682363,0.38912073,109250.0,109240.0,0.4616344]
[1756675686304,0.38912073,109250.0,109240.0,0.4626344]
[1756675687960,0.38911325,109250.0,109240.0,0.4626344]
[1756675688446,0.389113,109250.0,109240.0,0.4626344]
[1756675688641,0.00858231,109250.0,109240.0,0.4626344]
[1756675698824,0.60149745,109260.0,109250.0,0.18306636]
[1756675698987,0.62708332,109260.0,109250.0,0.18306636]
[1756675699427,1.01031401,109260.0,109240.0,0.2807074]
[1756675699600,0.62119937,109260.0,109250.0,0.21058936]
[1756675699753,0.62978352,109260.0,109250.0,0.21058936]
[1756675700946,1.01031421,109260.0,109250.0,0.21058936]
[1756675703321,1.03009636,109260.0,109250.0,0.21058936]
[1756675704682,1.03009636,109260.0,109250.0,0.027523]
[1756675705703,1.02739636,109260.0,109250.0,0.027523]
[1756675706127,1.02739889,109260.0,109250.0,0.027523]
[1756675709802,1.02743789,109260.0,109250.0,0.027523]
[1756675710356,1.02743789,109260.0,109250.0,0.21058936]
[1756675710952,1.02743789,109260.0,109250.0,0.027523]
[1756675713412,1.02743829,109260.0,109250.0,0.027523]
[1756675714915,1.02743829,109260.0,109250.0,0.21058936]
[1756675715121,1.02743829,109260.0,109250.0,0.027523]
[1756675718203,1.02743829,109260.0,109250.0,0.21058936]
[1756675718412,1.17967829,109260.0,109250.0,0.21058936]
[1756675718587,1.15989614,109260.0,109250.0,0.21058936]
[1756675718789,1.17970084,109260.0,109250.0,0.21058936]
[1756675720627,1.17970299,109260.0,109250.0,0.21058936]
[1756675723059,1.17970299,109260.0,109250.0,0.027523]
[1756675724310,1.17970299,109260.0,109250.0,0.21058936]
[1756675729710,1.17970299,109260.0,109250.0,0.02650834]
[1756675730964,1.17970299,109260.0,109250.0,0.2095747]
[1756675731598,1.17970336,109260.0,109250.0,0.2095747]
[1756675732206,1.17970336,109260.0,109250.0,0.20928627]
[1756675732439,1.17970335,109260.0,109250.0,0.20928627]
[1756675732609,1.17970335,109260.0,109250.0,0.21222627]
[1756675733626,1.17970335,109260.0,109250.0,0.21419627]
[1756675736696,1.26799967,109260.0,109250.0,0.21419627]
[1756675737183,1.26799967,109260.0,109250.0,0.18336991]
[1756675737384,1.26799967,109260.0,109250.0,0.36643627]
[1756675737810,1.17970335,109260.0,109250.0,0.17845991]
[1756675738218,1.17970335,109260.0,109250.0,0.36152627]
[1756675739801,1.17970335,109260.0,109250.0,0.20928627]
[1756675740001,1.17970335,109260.0,109250.0,0.17841991]
[1756675741051,1.17970337,109260.0,109250.0,0.17841991]
[1756675741459,1.17110756,109260.0,109250.0,0.17841991]
[1756675741632,1.26799976,109260.0,109250.0,0.17841991]
[1756675744399,1.26799976,109260.0,109250.0,0.36148627]
[1756675744616,1.26799976,109260.0,109250.0,0.17841991]
[1756675745018,1.26799976,109260.0,109250.0,0.36148627]
[1756675745974,1.11575976,109260.0,109250.0,0.36148627]
[1756675746375,1.11575976,109260.0,109250.0,0.36442627]
[1756675746882,1.65119045,109260.0,109250.0,0.02621991]
[1756675747088,0.18306636,109250.0,109240.0,0.15267428]
[1756675747397,0.83831792,109250.0,109240.0,0.02800028]
[1756675748031,1.21884861,109250.0,109240.0,0.02800028]
[1756675748235,1.21884861,109250.0,109240.0,0.02900028]
[1756675749181,1.23864996,109250.0,109240.0,0.00147428]
[1756675751906,1.2214582,109250.0,109240.0,0.00147428]
[1756675752226,1.23862713,109250.0,109240.0,0.00147428]
[1756675752548,1.23862642,109250.0,109240.0,0.00147428]
[1756675757159,1.13052875,109250.0,109240.0,0.00147428]
[1756675761206,1.13052875,109250.0,109240.0,0.00047428]
[1756675761865,0.97832875,109250.0,109240.0,0.00047428]
[1756675762707,0.97832494,109250.0,109240.0,0.00047428]
[1756675765656,0.21726356,109250.0,109240.0,0.00047428]
[1756675765858,0.97832494,109250.0,109240.0,0.00047428]
[1756675767149,0.99810282,109250.0,109240.0,0.00047428]
[1756675769241,0.77670541,109250.0,109240.0,0.00047428]
[1756675769465,0.94412774,109250.0,109240.0,0.00341428]
[1756675773571,1.03242406,109250.0,109240.0,0.00341428]
[1756675776356,1.05222071,109250.0,109240.0,0.03094028]
[1756675780359,0.20286301,109250.0,109240.0,0.03306028]
[1756675780565,0.96507439,109250.0,109240.0,0.03094028]
[1756675780749,0.96507439,109250.0,109240.0,0.02800028]
[1756675780921,1.11727439,109250.0,109240.0,0.02800028]
[1756675781328,1.14950775,109250.0,109240.0,0.02800028]
[1756675781535,1.23780407,109250.0,109240.0,0.02800028]
[1756675784525,1.22920851,109250.0,109240.0,0.02800028]
[1756675784763,1.23780177,109250.0,109240.0,0.02800028]
[1756675792204,1.08560177,109250.0,109240.0,0.02800028]
[1756675792419,1.23776177,109250.0,109240.0,0.02800028]
[1756675793044,1.23776177,109250.0,109240.0,0.03094028]
[1756675794731,1.08560177,109250.0,109240.0,0.03094028]
[1756675794941,1.23776177,109250.0,109240.0,0.00341428]
[1756675795506,1.23775855,109250.0,109240.0,0.00341428]
[1756675795922,1.57775855,109250.0,109240.0,0.00047428]
[1756675796128,1.69621379,109250.0,109240.0,0.00047428]
[1756675796328,1.72373525,109250.0,109240.0,0.00047428]
[1756675797039,1.75675532,109250.0,109240.0,0.00047428]
[1756675797409,1.72373525,109250.0,109240.0,0.00047428]
[1756675800710,2.13728601,109250.0,109240.0,0.00047428]
[1756675801489,2.58088601,109250.0,109240.0,0.00047428]
[1756675801700,2.55613014,109250.0,109240.0,0.00047428]
[1756675801924,2.60566373,109250.0,109240.0,0.00047428]
[1756675802332,2.55613014,109250.0,109240.0,0.00047428]
[1756675802618,2.65661887,109250.0,109240.0,0.00047428]
[1756675803167,2.65761887,109250.0,109240.0,0.00047428]
[1756675803636,2.65661887,109250.0,109240.0,0.00047428]
[1756675803850,2.85414465,109250.0,109240.0,0.00047428]
[1756675804058,2.75367824,109250.0,109240.0,0.00047428]
[1756675804273,2.46007824,109250.0,109240.0,0.00047428]
[1756675804487,2.26054465,109250.0,109240.0,0.00047428]
[1756675804694,2.41054465,109250.0,109240.0,0.00047428]
[1756675805288,2.26047351,109250.0,109240.0,0.00047428]
[1756675805698,2.26047092,109250.0,109240.0,0.00047428]
[1756675807835,2.30107113,109250.0,109240.0,0.00047428]
[1756675808812,2.3010579,109250.0,109240.0,0.00047428]
[1756675810226,2.31539053,109250.0,109240.0,0.00047428]
[1756675810653,2.36492412,109250.0,109240.0,0.00047428]
[1756675811076,2.21276412,109250.0,109240.0,0.00047428]
[1756675811310,2.36492412,109250.0,109240.0,0.00047428]
[1756675812611,2.21276412,109250.0,109240.0,0.00047428]
[1756675812768,2.36492412,109250.0,109240.0,0.00047428]
[1756675815515,2.36420412,109250.0,109240.0,0.00047428]
[1756675816058,2.36418809,109250.0,109240.0,0.00047428]
[1756675816645,2.28535396,109250.0,109240.0,0.00047428]
[1756675817184,2.28535483,109250.0,109240.0,0.00047428]
[1756675817621,2.28535483,109250.0,109240.0,0.00341428]
[1756675818040,2.17147155,109250.0,109240.0,0.00558428]
[1756675819438,2.01931155,109250.0,109240.0,0.00558428]
[1756675819651,2.17151155,109250.0,109240.0,0.00558428]
[1756675819835,1.91759921,109250.0,109240.0,0.00558428]
[1756675823280,1.91120565,109250.0,109240.0,0.00558428]
[1756675823487,2.00593278,109250.0,109240.0,0.00558428]
[1756675826488,2.01428695,109250.0,109240.0,0.00558428]
[1756675826889,2.01432141,109250.0,109240.0,0.00558428]
[1756675829857,0.18309988,109230.0,109220.0,4e-05]
[1756675830057,1.17304757,109230.0,109220.0,4e-05]
[1756675830240,1.17304757,109230.0,109220.0,0.00203]
[1756675830440,1.20059116,109230.0,109220.0,0.00203]
[1756675832086,1.20059116,109230.0,109220.0,0.00623]
[1756675832886,1.20059116,109230.0,109220.0,0.00723]
[1756675834198,1.20059985,109230.0,109220.0,0.00723]
[1756675834464,1.27668676,109230.0,109220.0,0.00723]
[1756675836521,0.51562538,109230.0,109220.0,0.00723]
[1756675836727,1.27668676,109230.0,109220.0,0.00723]
[1756675837773,1.27671423,109230.0,109220.0,0.00723]
[1756675838350,1.27671456,109230.0,109220.0,0.00723]
[1756675839113,1.27673969,109230.0,109220.0,0.00723]
[1756675839696,0.896209,109230.0,109220.0,0.00723]
[1756675840942,0.51567831,109230.0,109220.0,0.00723]
[1756675841142,0.896209,109230.0,109220.0,0.00723]
[1756675841612,0.89621306,109230.0,109220.0,0.00723]
[1756675848616,0.87901814,109230.0,109220.0,0.00723]
[1756675848824,0.896211,109230.0,109220.0,0.00723]
[1756675849513,0.4395934,109230.0,109220.0,0.00723]
[1756675849683,0.82012409,109230.0,109220.0,0.00723]
[1756675851734,0.82225409,109230.0,109220.0,0.00723]
[1756675859425,0.8222521,109230.0,109220.0,0.00723]
[1756675860090,0.82225183,109230.0,109220.0,0.00723]
[1756675860290,0.28098422,109230.0,109220.0,0.00723]
[1756675860501,0.38729998,109230.0,109220.0,0.00723]
[1756675860703,0.38729998,109230.0,109220.0,0.57087733]
[1756675860704,0.72729998,109230.0,109220.0,0.57087733]
[1756675860986,0.57513998,109230.0,109220.0,0.57087733]
[1756675862046,0.57513761,109230.0,109220.0,0.57087733]
[1756675863106,0.39203773,109230.0,109220.0,0.57087733]
[1756675863920,0.57513761,109230.0,109220.0,0.57087733]
[1756675864473,0.05203773,109230.0,109220.0,0.97893702]
[1756675864697,0.05203773,109230.0,109220.0,1.07191703]
[1756675864698,0.00859455,109230.0,109220.0,1.07191703]
[1756675864917,0.20829913,109250.0,109240.0,0.18308311]
[1756675864918,0.00962768,109250.0,109240.0,0.18308311]
[1756675865275,0.01550704,109250.0,109240.0,0.5689638]
[1756675865494,0.21836507,109250.0,109240.0,0.5689638]
[1756675865708,0.39246532,109250.0,109240.0,0.5689638]
[1756675866130,0.39246532,109250.0,109240.0,0.5964888]
[1756675866377,0.39346532,109250.0,109240.0,0.5964888]
[1756675866589,0.37467358,109250.0,109240.0,0.5964888]
[1756675867014,0.36823101,109250.0,109240.0,0.5964888]
[1756675867459,0.36623101,109250.0,109240.0,0.5964888]
[1756675867925,0.02623101,109250.0,109240.0,1.0699995]
[1756675868155,0.0090644,109250.0,109240.0,1.0699995]
[1756675868638,0.00047437,109250.0,109240.0,1.0699995]
[1756675868855,0.00047437,109250.0,109240.0,0.30893812]
[1756675869065,0.00047437,109250.0,109240.0,0.68946881]
[1756675869286,0.00047437,109250.0,109240.0,0.69046881]
[1756675869516,0.00047437,109250.0,109240.0,0.69146881]
[1756675872035,0.00047437,109250.0,109240.0,0.84362881]
[1756675874048,0.00047437,109250.0,109240.0,0.84358881]
[1756675880663,0.00902744,109250.0,109240.0,0.84358881]
[1756675881303,0.00902783,109250.0,109240.0,0.84358881]
[1756675886229,0.00902783,109250.0,109240.0,1.2241195]
[1756675890801,0.00047437,109250.0,109240.0,1.2241195]
[1756675891823,0.00904096,109250.0,109240.0,1.2241195]
[1756675894732,0.00904096,109250.0,109240.0,1.2181195]
[1756675898465,0.00904096,109250.0,109240.0,1.0659995]
[1756675898784,0.00904096,109250.0,109240.0,1.2181595]
[1756675901591,0.00047437,109250.0,109240.0,1.2181595]
[1756675901799,0.00905844,109250.0,109240.0,1.2181595]
[1756675903034,0.00905844,109250.0,109240.0,1.0659995]
[1756675903232,0.00905844,109250.0,109240.0,1.2181195]
[1756675904715,0.00905844,109250.0,109240.0,1.59865019]
[1756675904926,0.00905844,109250.0,109240.0,1.2181195]
[1756675910094,0.00905844,109250.0,109240.0,0.83758881]
[1756675910292,0.00905844,109250.0,109240.0,0.45705812]
[1756675910619,0.00905844,109250.0,109240.0,0.83758881]
[1756675912479,0.00906248,109250.0,109240.0,0.83758881]
[1756675913716,0.00906248,109250.0,109240.0,0.83802881]
[1756675913962,0.38959317,109250.0,109240.0,0.45749812]
[1756675914418,0.38959317,109250.0,109240.0,0.4994052]
[1756675916100,0.38959317,109250.0,109240.0,0.3468452]
[1756675916308,0.38959317,109250.0,109240.0,0.4994052]
[1756675917799,0.00906248,109250.0,109240.0,0.4994052]
[1756675918250,0.00047437,109250.0,109240.0,0.4994052]
[1756675922203,0.38353069,109260.0,109250.0,0.18306636]
[1756675922408,0.77265608,109260.0,109250.0,0.42865318]
[1756675922617,0.77478608,109260.0,109250.0,0.42865318]
[1756675922819,0.77478608,109260.0,109250.0,0.45617318]
[1756675925469,0.39425539,109260.0,109250.0,0.45617318]
[1756675927315,0.0107247,109260.0,109250.0,0.45617318]
[1756675927521,0.39125539,109260.0,109250.0,0.45617318]
[1756675929731,0.39425539,109260.0,109250.0,0.45617318]
[1756675932128,0.39125539,109260.0,109250.0,0.45617318]
[1756675933165,0.39125572,109260.0,109250.0,0.45617318]
[1756675934042,0.39125574,109260.0,109250.0,0.45617318]
[1756675934610,0.01072505,109260.0,109250.0,0.48727257]
[1756675934816,0.39125574,109260.0,109250.0,0.46120318]
[1756675935434,0.39125575,109260.0,109250.0,0.46120318]
[1756675936489,0.01072506,109260.0,109250.0,0.46120318]
[1756675936687,0.39125568,109260.0,109250.0,0.46120318]
[1756675939683,0.19377459,109260.0,109250.0,0.46120318]
[1756675939887,0.57430528,109260.0,109250.0,0.46120318]
[1756675941403,0.57430528,109260.0,109250.0,0.45815318]
[1756675943922,0.56571029,109260.0,109250.0,0.45815318]
[1756675944132,0.39125566,109260.0,109250.0,0.46131318]
[1756675946268,0.38912566,109260.0,109250.0,0.46131318]
[1756675946466,0.00859497,109260.0,109250.0,0.46131318]
[1756675947075,0.38912566,109260.0,109250.0,0.46131318]
[1756675950419,0.00859497,109260.0,109250.0,0.46131318]
[1756675950906,0.38912566,109260.0,109250.0,0.46131318]
[1756675953972,0.00859497,109260.0,109250.0,0.46131318]
[1756675954177,0.38912566,109260.0,109250.0,0.46131318]
[1756675954734,0.38053069,109260.0,109250.0,0.46131318]
[1756675955188,0.52599306,109270.0,109260.0,0.1830496]
[1756675955415,0.95211066,109270.0,109260.0,0.1830496]
[1756675955970,0.92847561,109270.0,109260.0,0.1830496]
[1756675956580,0.92947561,109270.0,109260.0,0.2105696]
[1756675956832,0.95311065,109270.0,109260.0,0.2105696]
[1756675957032,0.94666473,109270.0,109260.0,0.2105696]
[1756675957240,0.92947561,109270.0,109260.0,0.2105696]
[1756675957436,0.93047561,109270.0,109260.0,0.2105696]
[1756675959658,0.94551607,109270.0,109260.0,0.2105696]
[1756675959868,0.93907016,109270.0,109260.0,0.2105696]
[1756675960129,0.94551607,109270.0,109260.0,0.2105696]
[1756675960374,0.55639083,109270.0,109260.0,0.2105696]
[1756675960567,0.95625926,109270.0,109260.0,0.2105696]
[1756675961394,0.93047561,109270.0,109260.0,0.2105696]
[1756675961553,0.96270514,109270.0,109260.0,0.2105696]
[1756675962736,0.96270514,109270.0,109260.0,0.18008]
[1756675962944,0.96270514,109270.0,109260.0,0.3631296]
[1756675963614,0.58217445,109270.0,109260.0,0.3631296]
[1756675964029,0.96270514,109270.0,109260.0,0.3631296]
[1756675965522,0.96270514,109270.0,109260.0,0.18012]
[1756675966372,0.96270514,109270.0,109260.0,0.3631696]
[1756675968063,0.962705,109270.0,109260.0,0.3631696]
[1756675968946,0.962705,109270.0,109260.0,0.18012]
[1756675969073,0.962705,109270.0,109260.0,0.3631696]
[1756675971542,0.95625975,109270.0,109260.0,0.3631696]
[1756675971743,0.96270615,109270.0,109260.0,0.3631696]
[1756675972430,0.96270623,109270.0,109260.0,0.3631696]
[1756675972663,0.96270623,109270.0,109260.0,0.18012]
[1756675973558,0.96270623,109270.0,109260.0,0.3631696]
[1756675975374,0.60290437,109270.0,109260.0,0.3631696]
[1756675976374,0.60290437,109270.0,109260.0,0.18012]
[1756675976908,0.60290437,109270.0,109260.0,0.3631696]
[1756675979929,0.60290437,109270.0,109260.0,0.18012]
[1756675979930,0.59994437,109270.0,109260.0,0.18012]
[1756675981318,0.5741602,109270.0,109260.0,0.18012]
[1756675981528,0.59994599,109270.0,109260.0,0.18012]
[1756675982181,0.59349954,109270.0,109260.0,0.18012]
[1756675982383,0.59994596,109270.0,109260.0,0.18012]
[1756675982614,0.59994596,109270.0,109260.0,0.3631696]
[1756675983624,0.59994596,109270.0,109260.0,0.18012]
[1756675985422,0.61974945,109270.0,109260.0,0.18012]
[1756675985771,0.61974945,109270.0,109260.0,0.3631696]
[1756675987879,0.61974945,109270.0,109260.0,0.18012]
[1756675989496,0.61974945,109270.0,109260.0,0.3631696]
[1756675991828,0.61974945,109270.0,109260.0,0.18012]
[1756675992192,0.61974925,109270.0,109260.0,0.18012]
[1756675994582,0.61974925,109270.0,109260.0,0.18216]
[1756675994994,0.61974925,109270.0,109260.0,0.1851]
[1756675995619,0.61974925,109270.0,109260.0,0.3681496]
[1756675998631,0.59442317,109270.0,109260.0,0.3681496]
[1756676001108,0.59579576,109270.0,109260.0,0.02752]
[1756676001313,0.59579576,109270.0,109260.0,0.1828]
[1756676001529,0.61559965,109270.0,109260.0,0.1828]
[1756676001953,0.61559965,109270.0,109260.0,0.1848]
[1756676002164,0.61559965,109270.0,109260.0,0.02752]
[1756676002366,0.61559965,109270.0,109260.0,0.17976]
[1756676002904,0.61559967,109270.0,109260.0,0.17976]
[1756676003109,0.61559975,109270.0,109260.0,0.17976]
[1756676003307,0.61559975,109270.0,109260.0,0.02752]
[1756676003602,0.61559975,109270.0,109260.0,0.17992]
[1756676004660,0.61559975,109270.0,109260.0,0.18296]
[1756676005325,0.23506906,109270.0,109260.0,0.18296]
[1756676005565,0.61559975,109270.0,109260.0,0.18496]
[1756676012944,0.23506906,109270.0,109260.0,0.3680096]
[1756676013154,0.61559975,109270.0,109260.0,0.3680096]
[1756676013557,0.61559975,109270.0,109260.0,0.18496]
[1756676013751,0.60700057,109270.0,109260.0,0.18496]
[1756676014000,0.61559436,109270.0,109260.0,0.18496]
[1756676014433,0.61559438,109270.0,109260.0,0.18496]
[1756676018071,0.61559438,109270.0,109260.0,0.3680096]
[1756676020521,0.61559097,109270.0,109260.0,0.3680096]
[1756676020910,0.61755097,109270.0,109260.0,0.3680096]
[1756676021066,0.23702028,109270.0,109260.0,0.3680096]
[1756676021277,0.61755097,109270.0,109260.0,0.3680096]
[1756676022504,0.61755097,109270.0,109260.0,0.36786827]
[1756676022706,0.61755097,109270.0,109260.0,0.3674877]
[1756676023319,0.23702028,109270.0,109260.0,0.3674877]
[1756676023726,0.61755097,109270.0,109260.0,0.36738325]
[1756676024610,0.58532423,109270.0,109260.0,0.36738325]
[1756676024810,0.61754899,109270.0,109260.0,0.36738325]
[1756676026115,0.2350583,109270.0,109260.0,0.36738325]
[1756676026324,0.61558899,109270.0,109260.0,0.36738325]
[1756676027942,0.2370183,109270.0,109260.0,0.18129365]
[1756676028299,0.61754899,109270.0,109260.0,0.36738325]
[1756676029731,0.3878814,109270.0,109260.0,0.36738325]
[1756676029930,0.57091446,109270.0,109260.0,0.36738325]
[1756676030336,0.19038377,109270.0,109260.0,0.36738325]
[1756676030532,0.57091446,109270.0,109260.0,0.36738325]
[1756676031987,0.19038377,109270.0,109260.0,0.36738325]
[1756676032189,0.57091446,109270.0,109260.0,0.36738325]
[1756676033240,0.19038377,109270.0,109260.0,0.36738325]
[1756676033433,0.57091446,109270.0,109260.0,0.36738325]
[1756676035715,0.56552375,109270.0,109260.0,0.36738325]
[1756676041879,0.61755239,109270.0,109260.0,0.36738325]
[1756676042379,0.61755239,109270.0,109260.0,0.36234325]
[1756676042578,0.61755239,109270.0,109260.0,0.36274325]
[1756676043072,0.61755239,109270.0,109260.0,0.36806325]
[1756676043831,1.00061308,109270.0,109260.0,0.02689365]
[1756676044636,1.0889094,109270.0,109260.0,0.02689365]
[1756676045309,1.07386617,109270.0,109260.0,0.02689365]
[1756676045519,1.24174271,109270.0,109260.0,0.02689365]
[1756676048971,1.24174062,109270.0,109260.0,0.02689365]
[1756676051438,1.26926262,109270.0,109260.0,0.02689365]
[1756676055269,0.50820124,109270.0,109260.0,0.02689365]
[1756676055471,1.1784363,109270.0,109260.0,0.02689365]
[1756676055883,1.16116551,109270.0,109260.0,0.02689365]
[1756676056095,1.17235068,109270.0,109260.0,0.02689365]
[1756676056302,1.17840877,109270.0,109260.0,0.02689365]
[1756676057030,1.17840874,109270.0,109260.0,0.02689365]
[1756676060121,1.68894799,109270.0,109260.0,0.02689365]
[1756676060333,0.1830496,109260.0,109250.0,8.681e-05]
[1756676060542,0.41253563,109260.0,109250.0,8.681e-05]
[1756676060749,1.17809701,109260.0,109250.0,8.681e-05]
[1756676060955,1.20562401,109260.0,109250.0,8.681e-05]
[1756676061192,1.29392033,109260.0,109250.0,8.681e-05]
[1756676061408,1.2691866,109260.0,109250.0,8.681e-05]
[1756676061747,1.7426973,109260.0,109250.0,8.681e-05]
[1756676061969,2.10743103,109260.0,109250.0,0.00108681]
[1756676062172,2.14042198,109260.0,109250.0,0.00108681]
[1756676062384,2.10743103,109260.0,109250.0,0.00108681]
[1756676063840,2.10843103,109260.0,109250.0,0.00108681]
[1756676064048,2.10843103,109260.0,109250.0,8.681e-05]
[1756676065141,2.10743103,109260.0,109250.0,8.681e-05]
[1756676065552,2.10843103,109260.0,109250.0,8.681e-05]
[1756676066958,2.09335722,109260.0,109250.0,8.681e-05]
[1756676067169,2.10834728,109260.0,109250.0,8.681e-05]
[1756676067756,2.10192297,109260.0,109250.0,8.681e-05]
[1756676067922,2.1083463,109260.0,109250.0,8.681e-05]
[1756676077803,2.10833639,109260.0,109250.0,8.681e-05]
[1756676077978,2.10580871,109260.0,109250.0,8.681e-05]
[1756676078387,2.10580892,109260.0,109250.0,8.681e-05]
[1756676081506,1.72527823,109260.0,109250.0,8.681e-05]
[1756676085337,0.96422799,109260.0,109250.0,8.681e-05]
[1756676085540,1.72528937,109260.0,109250.0,8.681e-05]
[1756676086241,0.93692357,109260.0,109250.0,8.681e-05]
[1756676086451,0.9368817,109260.0,109250.0,8.681e-05]
[1756676086655,1.69794308,109260.0,109250.0,8.681e-05]
[1756676088570,1.63432815,109260.0,109250.0,8.681e-05]
[1756676088790,1.63435956,109260.0,109250.0,8.681e-05]
[1756676089005,1.63437511,109260.0,109250.0,8.681e-05]
[1756676091059,1.61722241,109260.0,109250.0,8.681e-05]
[1756676091275,1.63439495,109260.0,109250.0,8.681e-05]
[1756676091495,1.72269127,109260.0,109250.0,8.681e-05]
[1756676096060,1.73100083,109260.0,109250.0,8.681e-05]
[1756676099712,1.73103159,109260.0,109250.0,8.681e-05]
[1756676109459,1.68138155,109260.0,109250.0,8.681e-05]
[1756676109642,1.68138155,109260.0,109250.0,0.00302681]
[1756676110029,1.68226152,109260.0,109250.0,0.00508681]
[1756676116715,1.68226143,109260.0,109250.0,0.00508681]
[1756676117440,1.68226143,109260.0,109250.0,0.00302681]
[1756676118095,1.68226143,109260.0,109250.0,8.681e-05]
[1756676118289,1.68226143,109260.0,109250.0,0.00302681]
[1756676118728,1.49512538,109260.0,109250.0,0.00302681]
[1756676120190,1.49512526,109260.0,109250.0,0.00302681]
[1756676120338,1.4951252,109260.0,109250.0,0.00302681]
[1756676120547,1.4951252,109260.0,109250.0,0.00514681]
[1756676121336,1.49512504,109260.0,109250.0,0.00514681]
[1756676124034,1.49512526,109260.0,109250.0,0.00514681]
[1756676128700,1.55290992,109260.0,109250.0,0.00514681]
[1756676130367,0.79184854,109260.0,109250.0,0.00514681]
[1756676130562,1.55290992,109260.0,109250.0,0.00514681]
[1756676131185,1.53572938,109260.0,109250.0,0.00514681]
[1756676131315,1.55290949,109260.0,109250.0,0.00514681]
[1756676133595,1.55290949,109260.0,109250.0,0.00302681]
[1756676134830,1.55290772,109260.0,109250.0,0.00302681]
[1756676137911,1.29094753,109260.0,109250.0,0.00302681]
[1756676139307,0.52988615,109260.0,109250.0,0.00302681]
[1756676139511,1.29094753,109260.0,109250.0,0.00302681]
[1756676140019,1.63094753,109260.0,109250.0,0.00302681]
[1756676142074,1.62450331,109260.0,109250.0,0.00302681]
[1756676142415,1.5987366,109260.0,109250.0,0.00302681]
[1756676142605,1.63094498,109260.0,109250.0,0.00302681]
[1756676143425,1.63094356,109260.0,109250.0,0.00302681]
[1756676144911,1.63094356,109260.0,109250.0,0.00514681]
[1756676146181,1.62235513,109260.0,109250.0,0.00514681]
[1756676146374,1.63094199,109260.0,109250.0,0.00514681]
[1756676147973,1.63919675,109260.0,109250.0,0.00514681]
[1756676149121,1.669505,109260.0,109250.0,0.00514681]
[1756676149728,1.64588771,109260.0,109250.0,0.00514681]
[1756676149926,1.66950416,109260.0,109250.0,0.00514681]
[1756676152291,1.64975905,109260.0,109250.0,0.00514681]
[1756676152480,1.66954511,109260.0,109250.0,0.00514681]
[1756676153369,1.66095701,109260.0,109250.0,0.00514681]
[1756676153551,1.66954424,109260.0,109250.0,0.00514681]
[1756676153932,2.1866978,109260.0,109250.0,8.681e-05]
[1756676154253,2.1866978,109260.0,109230.0,0.00294]
[1756676154254,0.18308311,109240.0,109230.0,0.00294]
[1756676154481,1.21910605,109240.0,109230.0,0.00341437]
[1756676154644,1.21910605,109240.0,109230.0,0.00545437]
[1756676154815,1.24663605,109240.0,109230.0,0.00545437]
[1756676155619,1.24663605,109240.0,109230.0,0.00845437]
[1756676156410,1.24663605,109240.0,109230.0,0.00545437]
[1756676156820,1.24663605,109240.0,109230.0,0.00645437]
[1756676157530,1.58663605,109240.0,109230.0,0.00645437]
[1756676158499,1.58663605,109240.0,109230.0,0.00545437]
[1756676159079,1.58663605,109240.0,109230.0,0.00645437]
[1756676163063,1.56945052,109240.0,109230.0,0.00645437]
[1756676163260,1.58660867,109240.0,109230.0,0.00645437]
[1756676163765,1.58660825,109240.0,109230.0,0.00645437]
[1756676165983,0.82554687,109240.0,109230.0,0.00645437]
[1756676166180,1.58660825,109240.0,109230.0,0.00645437]
[1756676173996,1.58661083,109240.0,109230.0,0.00645437]
[1756676174818,1.58661101,109240.0,109230.0,0.00645437]
[1756676176886,1.58749101,109240.0,109230.0,0.00645437]
[1756676177653,1.58749233,109240.0,109230.0,0.00645437]
[1756676181146,1.58748116,109240.0,109230.0,0.00645437]
[1756676182326,1.61219978,109240.0,109230.0,0.00645437]
[1756676182513,1.58748116,109240.0,109230.0,0.00645437]